fUST/lending_fUST_20260117
["ID","MTS","AMOUNT","RATE_DAILY","PERIOD"]
[402216138,1768606286672,-500.0,0.00022739,3]
[402216139,1768606286682,-2229.1,0.00022739,3]
[402216140,1768606286692,-619.66,0.00022739,3]
[402216141,1768606286702,-500.0,0.00022739,3]
[402216142,1768606286712,-1783.86,0.00022739,3]
[402216143,1768606286721,-500.0,0.00022739,3]
[402216144,1768606286731,-535.55,0.00022739,3]
[402216145,1768606286740,-2935.53,0.00022739,3]
[402216146,1768606286750,-507.24,0.00022739,3]
[402216147,1768606286759,-672.51,0.00022739,3]
[402216148,1768606286769,-2562.85,0.00022739,3]
[402216149,1768606286779,-716.67,0.00022739,3]
[402216150,1768606286789,-500.0,0.00022739,3]
[402216151,1768606286798,-500.0,0.00022739,3]
[402216152,1768606286808,-1206.65,0.00022739,3]
[402216153,1768606286817,-1965.15,0.00022739,3]
[402216154,1768606286827,-531.38415791,0.00022739,3]
[402216155,1768606286836,-500.0,0.00022739,3]
[402216156,1768606286847,-500.0,0.00022739,3]
[402216157,1768606286856,-2225.62,0.00022739,3]
[402216158,1768606286866,-500.0,0.00022739,3]
[402216159,1768606286876,-500.0,0.00022739,3]
[402216160,1768606286886,-1014.11,0.00022739,3]
[402216161,1768606286895,-500.0,0.00022739,3]
[402216162,1768606286909,-500.0,0.00022739,3]
[402216163,1768606286919,-534.52,0.00022739,3]
[402216164,1768606286929,-500.0,0.00022739,3]
[402216165,1768606286939,-745.47,0.00022739,3]
[402216166,1768606286950,-870.56,0.00022739,3]
[402216167,1768606286960,-529.69496254,0.00022739,3]
[402216168,1768606286970,-500.0,0.00022739,3]
[402216169,1768606286980,-500.0,0.00022739,3]
[402216170,1768606286992,-1471.9,0.00022739,3]
[402216171,1768606287001,-500.0,0.00022739,3]
[402216172,1768606287011,-500.0,0.00022739,3]
[402216173,1768606287021,-641.94,0.00022739,3]
[402216174,1768606287227,-958.68,0.00022739,3]
[402216175,1768606287237,-500.0,0.00022739,3]
[402216176,1768606287246,-1251.47,0.00022739,3]
[402216177,1768606287256,-629.37733594,0.00022739,3]
[402216178,1768606287265,-625.69150713,0.00022739,3]
[402216179,1768606287274,-500.0,0.00022739,3]
[402216180,1768606287284,-1514.63,0.00022739,3]
[402216181,1768606287294,-500.0,0.00022739,3]
[402216182,1768606287302,-1010.64,0.00022739,3]
[402216183,1768606287311,-500.0,0.00022739,3]
[402216184,1768606287320,-500.0,0.00022739,3]
[402216185,1768606287330,-500.0,0.00022739,3]
[402216186,1768606287340,-1136.87,0.00022739,3]
[402216187,1768606287350,-500.0,0.00022739,3]
[402216188,1768606287359,-1742.45,0.00022739,3]
[402216189,1768606287368,-500.0,0.00022739,3]
[402216190,1768606287378,-8798.3,0.00022739,3]
[402216191,1768606287387,-500.0,0.00022739,3]
[402216192,1768606287397,-500.0,0.00022739,3]
[402216193,1768606287406,-967.4,0.00022739,3]
[402216194,1768606287416,-500.0,0.00022739,3]
[402216195,1768606287425,-1065.68,0.00022739,3]
[402216196,1768606287436,-500.0,0.00022739,3]
[402216197,1768606287446,-730.62,0.00022739,3]
[402216198,1768606287455,-500.0,0.00022739,3]
[402216199,1768606287465,-500.0,0.00022739,3]
[402216200,1768606287475,-500.0,0.00022739,3]
[402216201,1768606287484,-417.140764,0.00022739,3]
[402216202,1768606287493,-1136.85,0.00022739,3]
[402216203,1768606287503,-1019.22,0.00022739,3]
[402216204,1768606287512,-500.0,0.00022739,3]
[402216205,1768606287522,-500.0,0.00022739,3]
[402216206,1768606287531,-2175.53,0.00022739,3]
[402216207,1768606287541,-500.0,0.00022739,3]
[402216208,1768606287551,-500.0,0.00022739,3]
[402216209,1768606287560,-500.0,0.00022739,3]
[402216210,1768606287570,-715.38,0.00022739,3]
[402216211,1768606287579,-500.0,0.00022739,3]
[402216212,1768606287588,-500.0,0.00022739,3]
[402216213,1768606287605,-500.0,0.00022739,3]
[402216214,1768606287619,-500.0,0.00022739,3]
[402216215,1768606287631,-540.67434181,0.00022739,3]
[402216216,1768606287640,-1585.23,0.00022739,3]
[402216217,1768606287650,-474.88054626,0.00022739,3]
[402216218,1768606287661,-500.0,0.00022739,3]
[402216219,1768606287671,-500.0,0.00022739,3]
[402216220,1768606287681,-215.58501995,0.00022739,3]
[402216221,1768606287691,-1070.68,0.00022739,3]
[402216222,1768606287701,-1543.79,0.00022739,3]
[402216223,1768606287711,-500.0,0.00022739,3]
[402216224,1768606287721,-787.13,0.00022739,3]
[402216225,1768606287731,-500.0,0.00022739,3]
[402216226,1768606287741,-500.0,0.00022739,3]
[402216227,1768606287751,-500.0,0.00022739,3]
[402216228,1768606287761,-500.0,0.00022739,3]
[402216229,1768606287770,-500.0,0.00022739,3]
[402216230,1768606287780,-3984.85,0.00022739,3]
[402216231,1768606287789,-500.0,0.00022739,3]
[402216232,1768606287799,-564.18,0.00022739,3]
[402216233,1768606287808,-841.85,0.00022739,3]
[402216234,1768606287817,-544.33378535,0.00022739,3]
[402216235,1768606287827,-500.0,0.00022739,3]
[402216236,1768606287837,-500.0,0.00022739,3]
[402216237,1768606287847,-1386.93,0.00022739,3]
[402216238,1768606287857,-500.0,0.00022739,3]
[402216239,1768606287866,-593.53,0.00022739,3]
[402216240,1768606287876,-500.0,0.00022739,3]
[402216241,1768606287885,-2942.71,0.00022739,3]
[402216242,1768606287895,-664.42,0.00022739,3]
[402216243,1768606287909,-500.0,0.00022739,3]
[402216244,1768606287919,-1310.23,0.00022739,3]
[402216245,1768606287928,-1384.22,0.00022739,3]
[402216246,1768606287938,-500.0,0.00022739,2]
[402216247,1768606287950,-1718.24,0.00022739,3]
[402216248,1768606287960,-1493.78,0.00022739,3]
[402216249,1768606287970,-580.78,0.00022739,3]
[402216250,1768606287984,-500.0,0.00022739,3]
[402216251,1768606287995,-536.48,0.00022739,3]
[402216252,1768606288005,-1228.66,0.00022739,3]
[402216253,1768606288016,-500.0,0.00022739,3]
[402216254,1768606288026,-1627.08,0.00022739,3]
[402216255,1768606288036,-500.0,0.00022739,3]
[402216256,1768606288046,-2466.84,0.00022739,3]
[402216257,1768606288057,-500.0,0.00022739,3]
[402216258,1768606288067,-1167.35,0.00022739,3]
[402216259,1768606288077,-500.0,0.00022739,3]
[402216260,1768606288086,-856.9,0.00022739,3]
[402216261,1768606288096,-713.13,0.00022739,3]
[402216262,1768606288105,-500.0,0.00022739,3]
[402216263,1768606288114,-500.0,0.00022739,3]
[402216264,1768606288123,-500.0,0.00022739,3]
[402216265,1768606288138,-500.0,0.00022739,3]
[402216266,1768606288147,-1591.45,0.00022739,3]
[402216267,1768606288156,-500.0,0.00022739,3]
[402216268,1768606288166,-2793.44,0.00022739,3]
[402216269,1768606288175,-500.0,0.00022739,3]
[402216270,1768606288185,-836.47,0.00022739,3]
[402216271,1768606288194,-338.90072385,0.00022739,3]
[402216272,1768606288204,-1145.41,0.00022739,3]
[402216273,1768606288214,-826.03,0.00022739,3]
[402216274,1768606288224,-673.77,0.00022739,3]
[402216275,1768606288234,-1856.63,0.00022739,3]
[402216276,1768606288243,-500.0,0.00022739,3]
[402216277,1768606288253,-500.0,0.00022739,3]
[402216278,1768606288262,-500.0,0.00022739,3]
[402216279,1768606288272,-528.9,0.00022739,3]
[402216280,1768606288282,-500.0,0.00022739,3]
[402216281,1768606288292,-1194.53,0.00022739,3]
[402216282,1768606288301,-500.0,0.00022739,3]
[402216283,1768606288311,-568.73,0.00022739,3]
[402216284,1768606288320,-500.2,0.00022739,3]
[402216285,1768606288330,-523.14,0.00022739,3]
[402216286,1768606288339,-938.01,0.00022739,3]
[402216287,1768606288350,-1791.95,0.00022739,3]
[402216288,1768606288360,-1547.34,0.00022739,3]
[402216289,1768606288370,-272.27105704,0.00022739,3]
[402216290,1768606288379,-665.41,0.00022739,3]
[402216291,1768606288390,-733.1,0.00022739,3]
[402216292,1768606288400,-500.0,0.00022739,3]
[402216293,1768606288411,-1226.67,0.00022739,3]
[402216294,1768606288421,-1228.67,0.00022739,3]
[402216295,1768606288431,-500.0,0.00022739,3]
[402216296,1768606288440,-500.0,0.00022739,3]
[402216297,1768606288450,-500.0,0.00022739,3]
[402216298,1768606288460,-500.0,0.00022739,3]
[402216299,1768606288473,-500.0,0.00022739,3]
[402216300,1768606288482,-722.91,0.00022739,3]
[402216301,1768606288492,-962.94,0.00022739,3]
[402216302,1768606288501,-500.0,0.00022739,3]
[402216303,1768606288511,-500.0,0.00022739,3]
[402216304,1768606288521,-500.0,0.00022739,3]
[402216305,1768606288531,-500.0,0.00022739,3]
[402216306,1768606288541,-500.0,0.00022739,3]
[402216307,1768606288550,-888.54,0.00022739,3]
[402216308,1768606288560,-656.08,0.00022739,3]
[402216309,1768606288570,-500.0,0.00022739,3]
[402216310,1768606288580,-500.0,0.00022739,3]
[402216311,1768606288590,-16346.06,0.00022739,3]
[402216312,1768606288599,-1884.7,0.00022739,3]
[402216313,1768606288609,-523.98,0.00022739,3]
[402216314,1768606288618,-1409.14,0.00022739,3]
[402216315,1768606288628,-500.0,0.00022739,3]
[402216316,1768606288637,-569.58,0.00022739,3]
[402216317,1768606288647,-500.0,0.00022739,3]
[402216318,1768606288657,-500.0,0.00022739,3]
[402216319,1768606288667,-500.0,0.00022739,3]
[402216320,1768606288676,-500.0,0.00022739,3]
[402216321,1768606288686,-885.73,0.00022739,3]
[402216322,1768606288695,-246.30744438,0.00022739,3]
[402216323,1768606288705,-1698.69,0.00022739,3]
[402216324,1768606288715,-500.0,0.00022739,3]
[402216325,1768606288724,-500.0,0.00022739,3]
[402216326,1768606288734,-500.0,0.00022739,3]
[402216327,1768606288744,-500.0,0.00022739,3]
[402216328,1768606288754,-500.0,0.00022739,3]
[402216329,1768606288764,-500.0,0.00022739,3]
[402216330,1768606288774,-500.0,0.00022739,3]
[402216331,1768606288784,-500.0,0.00022739,3]
[402216332,1768606288794,-703.27,0.00022739,3]
[402216333,1768606288806,-1141.76,0.00022739,3]
[402216334,1768606288816,-612.9,0.00022739,3]
[402216335,1768606288827,-1092.06,0.00022739,3]
[402216336,1768606288836,-500.0,0.00022739,2]
[402216337,1768606288846,-1931.0,0.00022739,3]
[402216338,1768606288856,-500.0,0.00022739,3]
[402216339,1768606288865,-1589.58,0.00022739,3]
[402216340,1768606288875,-500.0,0.00022739,2]
[402216341,1768606288884,-1029.09,0.00022739,3]
[402216342,1768606288894,-500.0,0.00022739,3]
[402216343,1768606288906,-500.0,0.00022739,3]
[402216344,1768606288916,-3302.77,0.00022739,3]
[402216345,1768606288925,-762.01,0.00022739,3]
[402216346,1768606288935,-500.0,0.00022739,3]
[402216347,1768606288946,-743.69,0.00022739,3]
[402216348,1768606288956,-899.14,0.00022739,3]
[402216349,1768606288966,-500.0,0.00022739,2]
[402216350,1768606288978,-1407.78,0.00022739,3]
[402216351,1768606288988,-500.0,0.00022739,3]
[402216352,1768606288998,-775.15,0.00022739,3]
[402216353,1768606289008,-500.0,0.00022739,3]
[402216354,1768606289018,-500.0,0.00022739,3]
[402216355,1768606289028,-482.71539137,0.00022739,3]
[402216356,1768606289038,-895.04,0.00022739,3]
[402216357,1768606289048,-1293.79,0.00022739,3]
[402216358,1768606289059,-523.11789756,0.00022739,3]
[402216359,1768606289069,-500.0,0.00022739,3]
[402216360,1768606289079,-500.0,0.0002274,5]
[402216361,1768606289088,-199.87631576,0.0002274,7]
[402216362,1768606289098,-153.0,0.0002274,2]
[402216363,1768606289107,-153.0,0.0002274,2]
[402216364,1768606289117,-153.0,0.0002274,2]
[402216365,1768606289128,-153.0,0.0002274,2]
[402216366,1768606289138,-153.0,0.0002274,2]
[402216367,1768606289147,-153.0,0.0002274,2]
[402216368,1768606289156,-153.0,0.0002274,2]
[402216369,1768606289165,-210.48,0.000228,7]
[402216370,1768606289175,-384.3343363,0.00022877,2]
[402216371,1768606289185,-3199.29,0.000229,14]
[402216372,1768606289195,-3576.76245303,0.00022932,2]
[402216373,1768606289204,-740.38982778,0.00022932,2]
[402216374,1768606289214,-177.0,0.00022943,120]
[402216375,1768606289224,-199.0,0.00022943,120]
[402216376,1768606289233,-171.0,0.00022943,120]
[402216377,1768606289246,-2000.0,0.00022996,7]
[402216378,1768606289255,-1041.66666667,0.00023,3]
[402216379,1768606289264,-1299.999999,0.00023,5]
[402216380,1768606289274,-300.0,0.00023,2]
[402216381,1768606289283,-1041.66666667,0.00023013,3]
[402216382,1768606289292,-974.84761092,0.00023013,3]
[402216383,1768606289301,-629.05898636,0.00023013,3]
[402216384,1768606289310,-500.0,0.00023013,3]
[402216385,1768606289320,-500.0,0.00023013,3]
[402216386,1768606289330,-500.0,0.00023013,3]
[402216387,1768606289341,-500.0,0.00023013,3]
[402216388,1768606289350,-500.0,0.00023013,3]
[402216389,1768606289360,-500.0,0.00023013,3]
[402216390,1768606289370,-500.0,0.00023013,3]
[402216391,1768606289380,-500.0,0.00023013,3]
[402216392,1768606289389,-500.0,0.00023013,3]
[402216393,1768606289399,-500.0,0.00023013,3]
[402216394,1768606289408,-500.0,0.00023013,3]
[402216395,1768606289418,-500.0,0.00023013,3]
[402216396,1768606289428,-500.0,0.00023013,3]
[402216397,1768606289437,-552.12,0.00023013,3]
[402216398,1768606289448,-500.0,0.00023013,3]
[402216399,1768606289458,-500.0,0.00023013,3]
[402216400,1768606289468,-500.0,0.00023013,3]
[402216401,1768606289485,-1306.68,0.00023013,3]
[402216402,1768606289497,-500.0,0.00023013,3]
[402216403,1768606289507,-545.9,0.00023013,3]
[402216404,1768606289517,-580.5,0.00023013,3]
[402216405,1768606289529,-613.28,0.00023013,3]
[402216406,1768606289539,-500.0,0.00023013,3]
[402216407,1768606289548,-628.62,0.00023013,3]
[402216408,1768606289558,-500.0,0.00023013,3]
[402216409,1768606289568,-699.17,0.00023013,3]
[402216410,1768606289577,-534.42415941,0.00023013,3]
[402216411,1768606289587,-679.33,0.00023013,3]
[402216412,1768606289596,-500.0,0.00023013,3]
[402216413,1768606289605,-500.0,0.00023013,3]
[402216414,1768606289615,-500.0,0.00023013,3]
[402216415,1768606289625,-500.0,0.00023013,3]
[402216416,1768606289634,-500.0,0.00023013,3]
[402216417,1768606289643,-1088.64,0.00023013,3]
[402216418,1768606289653,-500.0,0.00023013,3]
[402216419,1768606289663,-577.81,0.00023013,3]
[402216420,1768606289672,-500.0,0.00023013,3]
[402216421,1768606289681,-913.53,0.00023013,3]
[402216422,1768606289691,-1092.57,0.00023013,3]
[402216423,1768606289700,-500.0,0.00023013,3]
[402216424,1768606289710,-500.0,0.00023013,3]
[402216425,1768606289719,-502.89,0.00023013,3]
[402216426,1768606289728,-805.67,0.00023013,3]
[402216427,1768606289738,-500.0,0.00023013,3]
[402216428,1768606289747,-612.67,0.00023013,3]
[402216429,1768606289756,-500.0,0.00023013,3]
[402216430,1768606289765,-539.98063284,0.00023013,3]
[402216431,1768606289775,-500.0,0.00023013,3]
[402216432,1768606289784,-532.75778098,0.00023013,3]
[402216433,1768606289793,-500.0,0.00023013,3]
[402216434,1768606289803,-500.0,0.00023013,3]
[402216435,1768606289814,-1066.43,0.00023013,3]
[402216436,1768606289824,-1720.28,0.00023013,3]
[402216437,1768606289835,-500.0,0.00023013,3]
[402216438,1768606289845,-500.0,0.00023013,3]
[402216439,1768606289855,-528.71,0.00023013,3]
[402216440,1768606289866,-500.0,0.00023013,3]
[402216441,1768606289877,-984.57,0.00023013,3]
[402216442,1768606289886,-594.7135294,0.00023013,3]
[402216443,1768606289895,-844.99,0.00023013,3]
[402216444,1768606289910,-696.01,0.00023013,3]
[402216445,1768606289919,-500.0,0.00023013,3]
[402216446,1768606289928,-500.0,0.00023013,3]
[402216447,1768606289938,-500.0,0.00023013,3]
[402216448,1768606289950,-500.0,0.00023013,3]
[402216449,1768606289959,-501.33,0.00023013,3]
[402216450,1768606289968,-1000.0,0.00023013,2]
[402216451,1768606289980,-500.0,0.00023013,3]
[402216452,1768606289989,-500.0,0.00023013,3]
[402216453,1768606289999,-500.0,0.00023013,3]
[402216454,1768606290008,-1048.01,0.00023013,3]
[402216455,1768606290020,-500.0,0.00023013,3]
[402216456,1768606290030,-500.0,0.00023013,3]
[402216457,1768606290040,-500.0,0.00023013,3]
[402216458,1768606290050,-861.03,0.00023013,3]
[402216459,1768606290059,-666.35,0.00023013,3]
[402216460,1768606290069,-606.72,0.00023013,3]
[402216461,1768606290079,-500.0,0.00023013,3]
[402216462,1768606290089,-615.63,0.00023013,3]
[402216463,1768606290098,-596.29,0.00023013,3]
[402216464,1768606290108,-500.0,0.00023013,3]
[402216465,1768606290118,-772.71,0.00023013,3]
[402216466,1768606290127,-500.0,0.00023013,3]
[402216467,1768606290137,-555.87,0.00023013,3]
[402216468,1768606290146,-554.34,0.00023013,3]
[402216469,1768606290156,-500.0,0.00023013,3]
[402216470,1768606290167,-500.0,0.00023013,3]
[402216471,1768606290177,-500.0,0.00023013,3]
[402216472,1768606290186,-500.0,0.00023013,3]
[402216473,1768606290195,-500.0,0.00023013,3]
[402216474,1768606290205,-500.0,0.00023013,3]
[402216475,1768606290215,-1345.73,0.00023013,3]
[402216476,1768606290224,-779.61,0.00023013,3]
[402216477,1768606290234,-500.0,0.00023013,3]
[402216478,1768606290244,-500.0,0.00023013,3]
[402216479,1768606290253,-500.0,0.00023013,3]
[402216480,1768606290262,-500.0,0.00023013,3]
[402216481,1768606290273,-500.0,0.00023013,3]
[402216482,1768606290282,-500.0,0.00023013,3]
[402216483,1768606290292,-887.1,0.00023013,3]
[402216484,1768606290302,-500.0,0.00023013,3]
[402216485,1768606290311,-500.0,0.00023013,3]
[402216486,1768606290320,-231.05978851,0.00023013,3]
[402216487,1768606290329,-500.0,0.00023013,3]
[402216488,1768606290339,-500.0,0.00023013,3]
[402216489,1768606290348,-500.0,0.00023013,3]
[402216490,1768606290359,-500.0,0.00023013,3]
[402216491,1768606290368,-1640.86,0.00023013,3]
[402216492,1768606290378,-861.54,0.00023013,3]
[402216493,1768606290387,-791.65,0.00023013,3]
[402216494,1768606290397,-500.0,0.00023013,3]
[402216495,1768606290406,-500.0,0.00023013,3]
[402216496,1768606290416,-500.0,0.00023013,3]
[402216497,1768606290425,-500.0,0.00023013,3]
[402216498,1768606290435,-500.0,0.00023013,3]
[402216499,1768606290444,-742.29,0.00023013,3]
[402216500,1768606290454,-1663.66,0.00023013,3]
[402216501,1768606290463,-500.0,0.00023013,3]
[402216502,1768606290473,-607.94,0.00023013,3]
[402216503,1768606290483,-500.0,0.00023013,3]
[402216504,1768606290493,-819.63,0.00023013,3]
[402216505,1768606290503,-500.0,0.00023013,3]
[402216506,1768606290513,-994.98,0.00023013,3]
[402216507,1768606290522,-2128.03,0.00023013,3]
[402216508,1768606290532,-500.0,0.00023013,3]
[402216509,1768606290542,-556.64,0.00023013,3]
[402216510,1768606290552,-500.0,0.00023013,3]
[402216511,1768606290561,-564.3,0.00023013,3]
[402216512,1768606290571,-636.06,0.00023013,3]
[402216513,1768606290581,-500.0,0.00023013,3]
[402216514,1768606290591,-804.01,0.00023013,3]
[402216515,1768606290601,-1029.6,0.00023013,3]
[402216516,1768606290610,-1160.25,0.00023013,3]
[402216517,1768606290620,-500.0,0.00023013,3]
[402216518,1768606290630,-500.0,0.00023013,3]
[402216519,1768606290640,-500.0,0.00023013,3]
[402216520,1768606290650,-530.21,0.00023013,3]
[402216521,1768606290659,-500.0,0.00023013,3]
[402216522,1768606290669,-500.0,0.00023013,3]
[402216523,1768606290679,-500.0,0.00023013,3]
[402216524,1768606290688,-666.54,0.00023013,3]
[402216525,1768606290698,-500.0,0.00023013,3]
[402216526,1768606290707,-694.83,0.00023013,3]
[402216527,1768606290717,-500.0,0.00023013,3]
[402216528,1768606290727,-463.47293485,0.00023013,3]
[402216529,1768606290736,-500.0,0.00023013,3]
[402216530,1768606290745,-500.0,0.00023013,3]
[402216531,1768606290755,-500.0,0.00023013,3]
[402216532,1768606290765,-500.0,0.00023013,3]
[402216533,1768606290774,-1023.88,0.00023013,3]
[402216534,1768606290783,-500.0,0.00023013,3]
[402216535,1768606290793,-500.0,0.00023013,3]
[402216536,1768606290802,-1491.92,0.00023013,3]
[402216537,1768606290812,-500.0,0.00023013,3]
[402216538,1768606290821,-500.0,0.00023013,3]
[402216539,1768606290830,-500.0,0.00023013,3]
[402216540,1768606290839,-1676.49,0.00023013,3]
[402216541,1768606290849,-500.0,0.00023013,3]
[402216542,1768606290858,-2078.85,0.00023013,3]
[402216543,1768606291107,-500.0,0.00023013,3]
[402216544,1768606291116,-500.0,0.00023013,3]
[402216545,1768606291126,-526.63,0.00023013,3]
[402216546,1768606291136,-500.0,0.00023013,3]
[402216547,1768606291146,-616.88,0.00023013,3]
[402216548,1768606291155,-1336.63,0.00023013,3]
[402216549,1768606291165,-500.0,0.00023013,3]
[402216550,1768606291174,-500.0,0.00023013,3]
[402216551,1768606291183,-503.95,0.00023013,3]
[402216552,1768606291192,-500.0,0.00023013,3]
[402216553,1768606291201,-500.0,0.00023013,3]
[402216554,1768606291210,-500.0,0.00023013,3]
[402216555,1768606291219,-500.0,0.00023013,3]
[402216556,1768606291228,-500.0,0.00023013,3]
[402216557,1768606291238,-1025.72,0.00023013,3]
[402216558,1768606291247,-500.0,0.00023013,3]
[402216559,1768606291257,-500.0,0.00023013,3]
[402216560,1768606291266,-854.24,0.00023013,3]
[402216561,1768606291275,-624.94,0.00023013,3]
[402216562,1768606291285,-500.0,0.00023013,3]
[402216563,1768606291294,-1720.81,0.00023013,3]
[402216564,1768606291303,-1133.27,0.00023013,3]
[402216565,1768606291312,-500.0,0.00023013,3]
[402216566,1768606291321,-500.0,0.00023013,3]
[402216567,1768606291329,-500.0,0.00023013,3]
[402216568,1768606291339,-2379.42,0.00023013,3]
[402216569,1768606291348,-500.0,0.00023013,3]
[402216570,1768606291357,-500.0,0.00023013,3]
[402216571,1768606291367,-500.0,0.00023013,3]
[402216572,1768606291376,-2019.88,0.00023013,3]
[402216573,1768606291385,-631.18,0.00023013,3]
[402216574,1768606291394,-1069.82,0.00023013,3]
[402216575,1768606291403,-500.0,0.00023013,3]
[402216576,1768606291417,-500.0,0.00023013,3]
[402216577,1768606291427,-500.0,0.00023013,3]
[402216578,1768606291437,-500.0,0.00023013,3]
[402216579,1768606291446,-500.0,0.00023013,3]
[402216580,1768606291456,-736.14,0.00023013,3]
[402216581,1768606291466,-500.0,0.00023013,3]
[402216582,1768606291476,-845.07,0.00023013,3]
[402216583,1768606291486,-500.0,0.00023013,3]
[402216584,1768606291495,-612.14784699,0.00023013,3]
[402216585,1768606291505,-2028.81,0.00023013,3]
[402216586,1768606291515,-500.0,0.00023013,3]
[402216587,1768606291524,-923.34,0.00023013,3]
[402216588,1768606291534,-703.68,0.00023013,3]
[402216589,1768606291543,-296.76420165,0.00023013,3]
[402216590,1768606291553,-500.0,0.00023013,3]
[402216591,1768606291563,-500.0,0.00023013,3]
[402216592,1768606291573,-1350.15,0.00023013,3]
[402216593,1768606291583,-500.0,0.00023013,3]
[402216594,1768606291592,-500.0,0.00023013,3]
[402216595,1768606291602,-505.05,0.00023013,3]
[402216596,1768606291612,-500.0,0.00023013,3]
[402216597,1768606291621,-607.14,0.00023013,3]
[402216598,1768606291631,-500.0,0.00023013,3]
[402216599,1768606291640,-1230.17,0.00023013,3]
[402216600,1768606291650,-500.0,0.00023013,3]
[402216601,1768606291660,-500.0,0.00023013,3]
[402216602,1768606291669,-500.0,0.00023013,3]
[402216603,1768606291678,-562.45603929,0.00023013,3]
[402216604,1768606291688,-1798.83,0.00023013,3]
[402216605,1768606291697,-500.0,0.00023013,3]
[402216606,1768606291707,-500.0,0.00023013,3]
[402216607,1768606291716,-1815.05,0.00023013,3]
[402216608,1768606291725,-500.0,0.00023013,3]
[402216609,1768606291735,-1108.94,0.00023013,3]
[402216610,1768606291745,-1029.96,0.00023013,3]
[402216611,1768606291754,-533.43,0.00023013,3]
[402216612,1768606291764,-500.0,0.00023013,3]
[402216613,1768606291775,-706.88,0.00023013,3]
[402216614,1768606291785,-845.49,0.00023013,3]
[402216615,1768606291794,-1047.78,0.00023013,3]
[402216616,1768606291803,-525.76,0.00023013,3]
[402216617,1768606291813,-785.98,0.00023013,3]
[402216618,1768606291822,-855.99,0.00023013,3]
[402216619,1768606291831,-500.0,0.00023013,3]
[402216620,1768606291841,-500.0,0.00023013,3]
[402216621,1768606291850,-500.0,0.00023013,3]
[402216622,1768606291860,-500.0,0.00023013,3]
[402216623,1768606291869,-500.0,0.00023013,3]
[402216624,1768606291878,-511.59,0.00023013,3]
[402216625,1768606291888,-2325.91,0.00023013,3]
[402216626,1768606291898,-500.0,0.00023013,3]
[402216627,1768606291912,-1219.03,0.00023013,3]
[402216628,1768606291924,-630.31,0.00023013,3]
[402216629,1768606291934,-2167.4,0.00023013,3]
[402216630,1768606291945,-965.59,0.00023013,3]
[402216631,1768606291955,-500.0,0.00023013,3]
[402216632,1768606291965,-523.59,0.00023013,3]
[402216633,1768606291974,-724.03,0.00023013,3]
[402216634,1768606291987,-1854.01,0.00023013,3]
[402216635,1768606291996,-812.22,0.00023013,3]
[402216636,1768606292006,-614.82,0.00023013,3]
[402216637,1768606292015,-787.07,0.00023013,3]